bitfinex/quotes_ETHUSD_20251128
["timestamp","ask_amount","ask_price","bid_price","bid_amount"]
[1764321244586,4.04654211,3064.4,3064.3,0.001]
[1764321245606,4.51274211,3064.4,3064.3,0.001]
[1764321247784,5.64384022,3064.4,3064.3,0.001]
[1764321247974,5.23833622,3064.4,3064.3,0.001]
[1764321248500,4.77213622,3064.4,3064.3,0.001]
[1764321248998,4.29463622,3064.4,3064.3,0.001]
[1764321249501,4.77213622,3064.4,3064.3,0.001]
[1764321249700,0.30576056,3064.4,3064.3,0.001]
[1764321249902,0.30548776,3064.4,3064.3,0.4703]
[1764321251507,3.56796931,3064.4,3064.3,0.4703]
[1764321252300,4.03496931,3064.4,3064.3,0.001]
[1764321253606,3.56796931,3064.4,3064.3,0.4575]
[1764321254104,3.56796931,3064.4,3064.3,0.001]
[1764321254314,4.02846931,3064.4,3064.3,0.001]
[1764321256408,4.48186931,3064.4,3064.3,0.001]
[1764321256609,5.20746342,3064.4,3064.3,0.001]
[1764321256984,4.23746931,3064.4,3064.3,0.001]
[1764321257509,3.56796931,3064.4,3064.3,0.001]
[1764321257707,4.02846931,3064.4,3064.3,0.001]
[1764321258108,4.48186931,3064.4,3064.3,0.001]
[1764321266302,4.02846931,3064.4,3064.3,0.001]
[1764321267110,4.48186931,3064.4,3064.3,0.001]
[1764321268821,4.02846931,3064.4,3064.3,0.001]
[1764321269390,3.56796931,3064.4,3064.3,0.001]
[1764321269618,3.56796931,3064.4,3064.3,0.4788]
[1764321270629,3.56796931,3064.4,3064.3,0.001]
[1764321271024,4.48186931,3064.4,3064.3,0.001]
[1764321271590,4.02846931,3064.4,3064.3,0.001]
[1764321272208,3.56796931,3064.4,3064.3,0.4788]
[1764321272494,4.48186931,3064.4,3064.3,0.001]
[1764321272721,4.02846931,3064.4,3064.3,0.001]
[1764321273503,3.56796931,3064.4,3064.3,0.4788]
[1764321274652,3.56996931,3064.4,3064.3,0.4788]
[1764321275930,3.56916931,3064.4,3064.3,0.4788]
[1764321276139,3.26528155,3064.4,3064.3,0.4788]
[1764321276634,3.72578155,3064.4,3064.3,0.001]
[1764321277835,0.002,3064.4,3064.3,0.001]
[1764321279235,0.4625,3064.4,3064.3,0.001]
[1764321279530,0.9159,3064.4,3064.3,0.001]
[1764321279899,4.17918155,3064.4,3064.3,0.001]
[1764321281626,3.72578155,3064.4,3064.3,0.001]
[1764321281805,3.26528155,3064.4,3064.3,0.4517]
[1764321282004,0.002,3064.4,3064.3,0.4517]
[1764321282411,0.002,3064.4,3064.3,0.9036]
[1764321282812,0.002,3064.4,3064.3,9.1897044]
[1764321283316,0.0012,3065.0,3064.3,22.33807612]
[1764321283515,0.002,3065.2,3065.0,0.4507]
[1764321283719,0.002,3065.2,3065.1,5.90520153]
[1764321283923,0.002,3065.2,3065.1,1.2992]
[1764321284325,0.002,3065.2,3065.1,4.56173629]
[1764321284542,0.002,3065.2,3065.1,2.08164765]
[1764321285209,0.002,3065.2,3065.1,5.34418394]
[1764321286138,0.002,3065.2,3065.1,2.08164765]
[1764321286512,0.4536,3065.2,3064.7,0.1876]
[1764321286845,0.002,3065.2,3065.1,0.4507]
[1764321287433,0.002,3065.2,3064.8,0.209]
[1764321287747,0.002,3065.2,3065.1,0.4507]
[1764321288042,0.30653515,3065.2,3065.1,0.4507]
[1764321289342,0.30640932,3065.2,3065.1,0.4507]
[1764321289538,0.75794704,3065.2,3064.8,0.6609]
[1764321289746,0.30434704,3065.1,3064.8,0.6609]
[1764321289940,0.4536,3065.2,3064.8,0.209]
[1764321290142,0.30434709,3065.1,3064.8,0.209]
[1764321290343,4.38553487,3065.2,3064.8,0.209]
[1764321290518,0.30428005,3065.1,3064.8,0.209]
[1764321290720,4.38553487,3065.2,3064.8,0.209]
[1764321291043,0.30428974,3065.1,3064.8,0.209]
[1764321291342,0.30424392,3065.0,3064.6,0.209]
[1764321291641,0.30424392,3064.9,3064.7,0.4519]
[1764321291834,0.30424392,3064.8,3064.7,0.4519]
[1764321292142,0.30424392,3064.8,3064.7,3.71486211]
[1764321292348,0.30424392,3064.8,3064.7,4.16556211]
[1764321292548,0.002,3065.2,3064.7,4.16556211]
[1764321292744,0.002,3065.2,3065.1,0.4507]
[1764321292745,3.26442985,3065.2,3065.1,0.4507]
[1764321292951,3.56867121,3065.2,3064.8,0.4519]
[1764321293125,0.30424136,3065.1,3064.8,0.4519]
[1764321293324,0.30424136,3065.0,3064.8,0.4519]
[1764321293522,0.98008948,3065.0,3064.8,0.4519]
[1764321293723,0.98008948,3065.0,3064.9,0.4507]
[1764321293920,1.28431757,3065.0,3064.9,0.4507]
[1764321294120,1.28431757,3065.0,3064.9,0.9026]
[1764321295862,1.28431473,3065.0,3064.9,0.4507]
[1764321296068,1.28431473,3065.0,3064.9,0.9026]
[1764321297921,1.28431473,3065.0,3064.9,0.4507]
[1764321298525,1.73591473,3065.0,3064.6,0.209]
[1764321298833,0.98008948,3065.0,3064.9,0.4507]
[1764321299039,1.28436688,3065.0,3064.6,3.47205753]
[1764321299236,0.98008948,3065.0,3064.9,0.4507]
[1764321299440,1.28439325,3065.0,3064.9,0.4507]
[1764321300068,1.28359325,3065.0,3064.9,0.4507]
[1764321300358,1.28359325,3065.0,3064.4,0.4519]
[1764321300359,1.73519325,3065.0,3064.4,0.4519]
[1764321300660,0.30430377,3064.9,3064.4,6.97845198]
[1764321300864,1.43088948,3065.0,3064.5,0.209]
[1764321301059,0.4516,3064.5,3064.3,0.001]
[1764321301368,0.30443888,3064.4,3064.3,0.001]
[1764321301664,1.28461802,3064.4,3064.3,3.71628804]
[1764321301866,1.28461802,3064.4,3064.3,4.19962192]
[1764321302161,0.98017914,3064.4,3064.3,4.96683312]
[1764321302364,0.002,3065.2,3064.3,8.23022116]
[1764321302580,0.98009908,3064.7,3064.5,4.60600153]
[1764321302871,0.98009908,3064.7,3064.6,0.24163068]
[1764321303168,0.98009908,3064.7,3064.6,1.14423068]
[1764321303372,1.28460074,3064.7,3064.6,1.7192539]
[1764321303531,0.30450166,3064.7,3064.6,1.7192539]
[1764321303728,0.002,3065.2,3064.6,1.7192539]
[1764321303729,0.98007347,3065.1,3064.6,1.7192539]
[1764321304028,0.30449956,3065.0,3064.7,0.4519]
[1764321304233,0.30449956,3064.9,3064.8,0.03262855]
[1764321304652,0.30449956,3064.9,3064.8,4.1980842]
[1764321305049,0.30449956,3064.9,3064.3,0.7682112]
[1764321305050,0.94079956,3064.9,3064.3,0.7682112]
[1764321305255,0.45,3064.4,3064.3,0.001]
[1764321305452,0.45,3064.4,3064.3,0.4517]
[1764321305453,0.30449956,3064.4,3064.3,0.4517]
[1764321305647,0.75609956,3064.4,3064.3,0.001]
[1764321306044,1.21629956,3064.4,3064.3,0.21]
[1764321306663,0.7563357,3064.4,3064.3,0.21]
[1764321307066,0.3047357,3064.4,3064.3,0.6607]
[1764321307376,0.3047357,3064.4,3064.3,1.1126]
[1764321307534,0.7563357,3064.4,3064.3,0.21]
[1764321307963,0.7563357,3064.4,3064.3,0.001]
[1764321308165,0.7563357,3064.4,3064.3,0.21]
[1764321308568,4.01961725,3064.4,3064.3,0.21]
[1764321308960,0.7563357,3064.4,3064.3,0.21]
[1764321309342,4.47981725,3064.4,3064.3,0.001]
[1764321309973,9.08581878,3064.4,3064.3,0.001]
[1764321310339,9.18561878,3064.4,3064.3,0.001]
[1764321310541,10.31671689,3064.4,3064.3,0.001]
[1764321310842,5.20541136,3064.4,3064.3,0.001]
[1764321311271,4.74521136,3064.4,3064.3,0.001]
[1764321311477,0.7872357,3064.4,3064.3,0.001]
[1764321311695,0.3047357,3064.4,3064.3,0.9278]
[1764321312644,0.3047357,3064.4,3064.3,0.4511]
[1764321312881,0.3047357,3064.4,3064.3,0.6601]
[1764321313664,0.3047357,3064.4,3064.3,4.40018804]
[1764321313867,0.3047357,3064.4,3064.3,1.5988424]
[1764321314257,0.3047357,3064.4,3064.3,4.40018804]
[1764321314662,0.3047357,3064.4,3064.3,1.1368]
[1764321315270,0.3047357,3064.4,3064.3,0.6601]
[1764321315583,0.3047357,3064.4,3064.3,3.92348804]
[1764321315784,0.3047357,3064.4,3064.3,4.43282192]
[1764321315955,0.3047357,3064.4,3064.3,4.40018804]
[1764321316150,0.3047357,3064.4,3064.3,4.43282192]
[1764321316351,0.3047357,3064.4,3064.3,4.40018804]
[1764321316682,0.3047357,3064.4,3064.3,5.18531597]
[1764321317950,0.3047357,3064.4,3064.3,4.97631597]
[1764321318168,0.3047357,3064.4,3064.3,5.18531597]
[1764321318565,0.3047357,3064.4,3064.3,1.92192793]
[1764321318764,0.3047357,3064.4,3064.3,5.18531597]
[1764321319155,0.3047357,3064.4,3064.3,4.97631597]
[1764321319349,0.3047357,3064.4,3064.3,5.18531597]
[1764321319554,0.3047357,3064.4,3064.3,5.21794985]
[1764321319981,0.3047357,3064.4,3064.3,5.18531597]
[1764321321131,0.496,3065.1,3064.3,5.18531597]
[1764321321132,0.002,3065.9,3065.6,0.4911]
[1764321321272,0.002,3065.9,3065.8,1.62219811]
[1764321321478,0.002,3065.9,3065.8,3.90139481]
[1764321321700,0.002,3065.9,3065.8,4.38289481]
[1764321322029,0.002,3065.9,3065.8,4.51348722]
[1764321322167,0.002,3065.9,3065.8,7.69142928]
[1764321322580,0.002,3066.0,3065.9,0.405504]
[1764321322780,0.002,3066.0,3065.9,1.72734106]
[1764321323008,0.002,3066.0,3065.9,5.71462015]
[1764321323299,0.002,3066.0,3065.9,5.63800015]
[1764321323501,0.002,3066.0,3065.9,5.51811615]
[1764321323997,0.002,3066.0,3065.9,5.03661615]
[1764321324297,0.0012,3066.0,3065.9,5.03661615]
[1764321324503,0.0012,3066.0,3065.9,5.51811615]
[1764321327411,0.0012,3066.0,3065.9,4.47837909]
[1764321327612,0.0012,3066.0,3065.9,4.68737909]
[1764321328585,0.9323,3066.0,3065.2,0.61211629]
[1764321328785,0.1828,3065.9,3065.3,6.73364684]
[1764321328986,0.1828,3065.9,3065.4,0.72151468]
[1764321329197,0.1828,3065.9,3065.5,3.29473168]
[1764321329414,0.1828,3065.9,3065.5,6.55684226]
[1764321329415,0.6578,3065.9,3065.5,6.55684226]
[1764321330709,0.6578,3065.9,3065.5,3.26211058]
[1764321330909,0.6578,3065.9,3065.6,0.209]
[1764321331413,0.6578,3065.9,3065.6,3.47100326]
[1764321331616,0.4561,3065.7,3065.6,0.209]
[1764321331821,0.4561,3065.7,3065.5,0.209]
[1764321332014,0.2055,3065.3,3065.1,3.26248492]
[1764321332216,0.2055,3065.3,3065.0,3.26264165]
[1764321332217,0.4536,3065.2,3065.0,3.26264165]
[1764321332526,0.4536,3065.2,3065.1,0.209]
[1764321332888,0.4536,3065.2,3065.1,3.47153629]
[1764321333094,0.4536,3065.2,3065.1,0.209]
[1764321334822,0.1828,3065.9,3065.1,1.3612]
[1764321335007,0.1828,3065.9,3065.4,0.4911]
[1764321335212,0.1828,3065.9,3065.5,0.209]
[1764321335398,0.6578,3065.9,3065.5,0.209]
[1764321335716,0.6578,3065.9,3065.1,3.44203417]
[1764321335717,0.4561,3065.6,3065.1,0.209]
[1764321335908,0.4561,3065.2,3065.1,0.209]
[1764321336332,0.9311,3065.2,3065.1,0.209]
[1764321337998,0.9311,3065.2,3064.4,6.5265631]
[1764321338194,0.2055,3065.0,3064.5,0.70090631]
[1764321338425,0.2055,3065.0,3064.6,0.209]
[1764321338827,0.2055,3065.0,3064.5,0.70090631]
[1764321339014,0.6805,3065.0,3064.6,0.209]
[1764321339195,0.6805,3065.0,3064.4,3.26328155]
[1764321339196,0.1828,3064.9,3064.4,3.26328155]
[1764321339403,0.6578,3064.9,3064.5,0.209]
[1764321339942,0.4561,3064.6,3064.5,3.47215887]
[1764321340143,0.4561,3064.6,3064.5,0.209]
[1764321340947,0.4561,3064.6,3064.3,3.26433849]
[1764321341114,0.4561,3064.6,3064.5,0.209]
[1764321341314,0.4561,3064.6,3064.3,0.001]
[1764321341516,3.56858155,3064.4,3064.3,0.001]
[1764321341719,3.77261935,3064.4,3064.3,0.001]
[1764321341931,4.23671935,3064.4,3064.3,0.001]
[1764321344054,4.36744364,3064.4,3064.3,0.001]
[1764321344256,4.23671935,3064.4,3064.3,0.001]
[1764321344446,0.469,3064.4,3064.3,0.001]
[1764321344646,4.19638155,3064.4,3064.3,0.001]
[1764321344958,4.49997825,3064.4,3064.3,0.001]
[1764321345386,4.49997825,3064.4,3062.3,1.13573511]
[1764321345387,0.6623,3063.9,3062.3,1.13573511]
[1764321345525,0.6623,3063.9,3062.2,0.129]
[1764321345526,0.405504,3063.6,3062.5,0.001]
[1764321345838,0.6596,3062.6,3062.5,0.001]
[1764321346866,1.1237,3062.6,3062.5,0.001]
[1764321347337,4.3888995,3062.6,3062.5,0.001]
[1764321347938,5.11449361,3062.6,3062.5,0.001]
[1764321348138,5.41749016,3062.6,3062.5,0.001]
[1764321348350,5.11449361,3062.6,3062.5,0.001]
[1764321348550,5.11369361,3062.6,3062.5,0.001]
[1764321348753,0.1933,3062.9,3062.5,0.001]
[1764321349284,0.17054821,3064.4,3062.8,0.4856]
[1764321349488,3.26392118,3063.8,3062.9,0.51824879]
[1764321349781,1.02787485,3063.7,3062.5,0.001]
[1764321349984,0.30228074,3063.6,3062.5,3.26630612]
[1764321350136,0.76638074,3063.6,3062.6,0.03265199]
[1764321350330,0.4641,3063.6,3062.5,7.38074285]
[1764321350578,0.76621898,3063.5,3062.5,4.11543673]
[1764321350739,0.72559411,3063.7,3062.6,0.71665199]
[1764321350943,0.209,3063.8,3062.6,0.684]
[1764321351160,0.4641,3063.7,3062.7,0.75897429]
[1764321351361,0.4641,3063.7,3062.5,6.90574285]
[1764321351362,6.52826738,3063.6,3062.5,0.37513061]
[1764321351560,6.52826738,3063.6,3062.6,0.209]
[1764321351561,0.4641,3063.5,3062.6,0.209]
[1764321352263,0.4641,3063.5,3062.5,0.001]
[1764321352469,1.18969411,3063.5,3062.5,0.001]
[1764321352769,1.18969411,3063.5,3062.6,3.2651995]
[1764321352953,1.18969411,3063.5,3062.6,3.75609758]
[1764321353162,1.18969411,3063.5,3062.6,7.02129708]
[1764321353342,1.18969411,3063.5,3062.6,3.72344559]
[1764321353538,0.72559411,3063.5,3062.7,0.684]
[1764321353754,0.72559411,3063.5,3062.8,0.03264986]
[1764321354150,0.4641,3063.8,3062.9,0.475]
[1764321354151,0.72559411,3063.7,3062.9,0.475]
[1764321355056,0.4641,3063.8,3063.0,0.209]
[1764321355275,0.30206458,3063.7,3063.1,0.21524666]
[1764321355573,3.72772485,3064.1,3063.2,6.52911986]
[1764321355751,3.26353802,3064.2,3063.6,0.4856]
[1764321355937,0.30204676,3064.1,3063.6,0.4856]
[1764321356692,0.30204676,3064.3,3063.6,0.9606]
[1764321356839,0.4641,3064.2,3063.5,0.209]
[1764321357245,0.30235647,3064.1,3063.3,0.88017199]
[1764321357475,3.26370757,3064.0,3063.4,0.41447319]
[1764321357973,0.4641,3064.4,3063.4,6.94316126]
[1764321358173,0.30235617,3064.3,3063.4,6.94316126]
[1764321358371,0.30235617,3064.3,3063.4,0.41447319]
[1764321358671,0.4641,3064.2,3063.5,0.209]
[1764321358876,0.4641,3064.2,3063.3,0.475]
[1764321359084,0.4641,3064.2,3063.3,3.26444296]
[1764321359270,0.30269006,3064.1,3063.4,0.209]
[1764321359778,3.56636251,3064.1,3063.4,3.47329739]
[1764321359947,3.26367245,3064.1,3063.4,3.47329739]
[1764321360149,3.72759824,3064.2,3063.4,6.73764419]
[1764321360351,0.30270219,3064.1,3063.4,6.73764419]
[1764321360552,0.30270219,3064.1,3063.4,3.47329739]
[1764321360747,0.30270219,3064.1,3063.4,4.14706181]
[1764321360947,0.30270219,3064.1,3063.4,7.41140861]
[1764321361377,0.30270219,3064.0,3063.4,4.14706181]
[1764321361689,3.91936757,3063.5,3062.9,0.1826]
[1764321361889,0.1932,3063.4,3063.2,0.209]
[1764321362176,0.4663,3063.3,3063.1,0.209]
[1764321362542,0.1959,3063.2,3062.5,0.001]
[1764321362749,0.4636,3062.9,3062.5,0.001]
[1764321362973,0.4636,3062.9,3062.6,0.209]
[1764321363355,0.4641,3063.2,3062.6,0.209]
[1764321363576,0.4641,3063.2,3062.5,6.53159648]
[1764321363905,0.6574,3063.9,3062.6,0.71665199]
[1764321364189,0.30333772,3063.8,3063.1,0.6682]
[1764321364348,0.30333772,3063.7,3063.1,0.8772]
[1764321364548,0.30333772,3063.6,3062.9,0.03264879]
[1764321364771,0.30333772,3063.5,3063.0,0.209]
[1764321364975,0.30333772,3063.4,3062.6,0.50765199]
[1764321365195,0.30345978,3063.3,3062.7,0.209]
[1764321365355,0.30345978,3063.2,3062.7,0.209]
[1764321365553,0.4641,3063.8,3062.8,0.50764986]
[1764321365745,0.4641,3063.8,3063.1,0.4856]
[1764321365746,3.26413369,3063.6,3063.1,0.4856]
[1764321365943,0.30369975,3063.5,3063.2,0.209]
[1764321366171,0.30369975,3063.4,3063.2,0.209]
[1764321366378,3.26413369,3063.6,3063.1,0.4856]
[1764321366379,0.30369975,3063.3,3063.1,0.209]
[1764321366584,0.30369975,3063.2,3063.1,0.209]
[1764321366797,0.77269975,3063.2,3062.6,3.26517506]
[1764321366953,0.469,3063.2,3062.6,3.26517506]
[1764321367151,0.469,3063.2,3062.5,0.001]
[1764321367152,0.1861,3062.7,3062.5,0.001]
[1764321367384,0.1861,3062.7,3062.6,0.209]
[1764321367879,0.49020324,3062.7,3062.5,0.21]
[1764321368078,0.1861,3062.7,3062.5,0.21]
[1764321368380,3.45812633,3063.0,3062.5,0.21]
[1764321368575,0.30428652,3062.9,3062.5,3.47528706]
[1764321368780,0.30428652,3062.8,3062.5,3.47528706]
[1764321368979,0.30428652,3062.7,3062.6,0.209]
[1764321369480,0.77328652,3062.7,3062.5,0.001]
[1764321369653,4.03848602,3062.6,3062.5,0.001]
[1764321369978,4.50258602,3062.6,3062.5,0.001]
[1764321370477,1.23738652,3062.6,3062.5,0.001]
[1764321370680,4.50258602,3062.6,3062.5,0.001]
[1764321371860,0.30428652,3062.6,3062.5,0.001]
[1764321372674,3.56868602,3062.6,3062.5,0.001]
[1764321372879,0.76598652,3062.6,3062.5,0.001]
[1764321373081,4.49408602,3062.6,3062.5,0.001]
[1764321375669,5.21968013,3062.6,3062.5,0.001]
[1764321376255,5.31948013,3062.6,3062.5,0.001]
[1764321377309,5.72498413,3062.6,3062.5,0.001]
[1764321379166,5.72498413,3062.6,3062.2,0.001]
[1764321379167,1.13109811,3062.5,3062.2,0.001]
[1764321379372,6.69423647,3062.3,3062.2,0.001]
[1764321379695,0.908104,3062.3,3062.2,0.001]
[1764321380013,1.381604,3062.3,3062.2,0.001]
[1764321380220,0.9761,3062.3,3062.2,0.001]
[1764321380372,4.18491349,3062.3,3062.2,0.001]
[1764321380681,3.93281938,3062.3,3062.2,0.001]
[1764321381278,3.45931938,3062.3,3062.2,0.001]
[1764321381994,3.93281938,3062.3,3062.2,0.001]
[1764321382499,0.1938,3062.3,3062.2,0.001]
[1764321382701,3.93281938,3062.3,3062.2,0.001]
[1764321382874,0.6673,3062.3,3062.2,0.001]
[1764321383203,3.93281938,3062.3,3062.2,0.001]
[1764321383672,3.26551938,3062.3,3062.2,0.001]
[1764321384071,3.26546052,3062.4,3062.2,0.4747]
[1764321384624,0.72559411,3062.5,3062.3,0.4737]
[1764321384806,0.30422189,3062.4,3062.3,0.4737]
[1764321385309,0.30422189,3062.4,3062.3,0.9477]
[1764321385471,0.30422189,3062.4,3062.3,1.387269]
[1764321386705,0.30422189,3062.4,3062.3,4.65278838]
[1764321386998,0.30422189,3062.4,3062.3,4.86178838]
[1764321387298,0.30422189,3062.4,3062.3,4.42221938]
[1764321387699,0.30422189,3062.4,3062.3,0.9477]
[1764321387905,0.30422189,3062.4,3062.3,1.1567]
[1764321388070,0.30422189,3062.4,3062.3,4.42221938]
[1764321388801,0.30422189,3062.4,3062.3,0.9477]
[1764321388994,0.30442399,3062.4,3062.3,3.94821938]
[1764321389197,0.30442399,3062.4,3062.3,0.6827]
[1764321389402,0.30442399,3062.4,3062.2,0.001]
[1764321389698,3.73837968,3062.9,3062.3,0.4737]
[1764321389901,0.30457177,3062.8,3062.3,0.4737]
[1764321390078,0.30457177,3062.7,3062.3,0.4737]
[1764321390273,0.30457177,3062.6,3062.3,0.4737]
[1764321390474,0.30457177,3062.5,3062.4,3.26541274]
[1764321390881,0.30457177,3062.5,3062.4,4.21311274]
[1764321391489,0.30457177,3062.5,3062.4,4.42211274]
[1764321392184,9.64444375,3063.4,3062.4,7.68752548]
[1764321392410,0.30479337,3063.3,3062.5,0.474]
[1764321392701,0.30479337,3063.2,3062.7,3.26509289]
[1764321392905,0.30479337,3063.1,3062.7,3.26509289]
[1764321393103,0.30479337,3063.0,3062.7,3.26509289]
[1764321393279,0.30479337,3062.9,3062.7,3.26509289]
[1764321393481,0.30479337,3062.8,3062.7,3.26509289]
[1764321394003,0.30479337,3062.8,3062.7,3.73879289]
[1764321394399,0.30479337,3062.8,3062.7,4.21279289]
[1764321394710,0.002,3063.5,3062.7,7.47788578]
[1764321394877,0.3048348,3063.4,3062.8,0.474]
[1764321395079,0.3048348,3063.3,3062.9,0.95678858]
[1764321395294,0.3048348,3063.2,3062.9,0.95678858]
[1764321395495,0.002,3063.5,3063.1,0.4737]
[1764321395700,0.30486,3063.4,3063.1,0.4737]
[1764321395911,0.30486,3063.3,3063.1,0.6563]
[1764321396081,0.30686,3063.2,3063.1,0.6563]
[1764321396709,0.30686,3063.2,3063.1,0.8653]
[1764321396889,0.30606,3063.2,3063.1,0.8653]
[1764321397286,0.30606,3063.2,3063.1,0.4737]
[1764321397605,0.30606,3063.2,3063.1,0.6827]
[1764321397778,0.30606,3063.2,3063.1,3.94736651]
[1764321398415,0.30606,3063.2,3063.1,0.6827]
[1764321398611,0.30606,3063.2,3063.1,3.94736651]
[1764321399425,0.30606,3063.2,3063.1,0.209]
[1764321399631,0.30606,3063.2,3063.1,0.6827]
[1764321400595,0.79836,3063.2,3063.1,0.209]
[1764321400888,0.30606,3063.2,3063.1,0.209]
[1764321401288,0.79836,3063.2,3062.8,3.2649427]
[1764321401492,0.9859,3063.2,3063.0,0.209]
[1764321401886,0.002,3063.2,3063.1,1.1169]
[1764321402291,0.002,3063.2,3063.1,0.6617]
[1764321402489,0.002,3063.2,3063.1,0.8707]
[1764321402686,0.002,3063.2,3063.1,1.3259]
[1764321402918,0.002,3063.2,3063.1,5.55931423]
[1764321404295,0.002,3063.2,3063.1,4.16952012]
[1764321404494,0.002,3063.2,3063.1,4.83372012]
[1764321406135,0.002,3063.2,3063.1,3.92636651]
[1764321406302,0.002,3063.2,3063.1,3.95276651]
[1764321407314,0.002,3063.2,3063.1,4.44061317]
[1764321409917,0.002,3063.2,3063.1,3.77641317]
[1764321410227,0.002,3063.2,3063.1,4.44061317]
[1764321410424,0.002,3063.2,3063.1,5.22941178]
[1764321410592,0.002,3063.2,3063.1,4.08611178]
[1764321410794,0.002,3063.2,3063.1,4.77421178]
[1764321411522,0.002,3063.2,3063.1,4.56521178]
[1764321411840,0.002,3063.2,3063.1,4.74156512]
[1764321412330,0.002,3063.2,3063.1,5.22941178]
[1764321413097,0.002,3063.2,3063.1,5.19676512]
[1764321413416,0.002,3063.2,3063.1,4.40796651]
[1764321413588,0.002,3063.2,3063.1,3.95276651]
[1764321414799,0.4943,3063.2,3063.0,0.001]
[1764321414999,0.4943,3063.2,3063.1,0.209]
[1764321415210,0.79943604,3063.2,3063.1,0.209]
[1764321416003,0.30713604,3063.2,3063.1,0.72074666]
[1764321416598,0.30713604,3063.2,3063.1,0.4791]
[1764321416825,0.79943604,3063.2,3063.1,0.209]
[1764321417128,0.30713604,3063.2,3063.1,3.95276651]
[1764321417315,0.30713604,3063.2,3063.1,5.34506647]
[1764321417622,0.30713604,3063.2,3063.1,4.88986647]
[1764321418015,0.30713604,3063.2,3063.1,4.16801317]
[1764321418499,0.30713604,3063.2,3063.1,4.62321317]
[1764321418697,0.30713604,3063.2,3063.1,4.16801317]
[1764321418914,0.30713604,3063.2,3063.1,3.92636651]
[1764321419114,0.30713604,3063.2,3063.1,0.4791]
[1764321419310,0.30713604,3063.2,3063.1,0.6881]
[1764321419624,0.30713604,3063.2,3063.1,3.95276651]
[1764321420922,1.29138452,3063.2,3063.0,0.001]
[1764321421230,0.92638452,3063.1,3063.0,0.001]
[1764321421419,0.92638452,3063.1,3063.0,0.21]
[1764321421614,0.43478452,3063.1,3063.0,0.21]
[1764321421820,0.30548452,3063.1,3063.0,1.1443]
[1764321422018,0.30548452,3063.1,3063.0,0.6891]
[1764321423827,0.30548452,3063.1,3063.0,3.95387309]
[1764321424023,0.30548452,3063.1,3063.0,3.98652082]
[1764321424723,0.30574633,3063.1,3063.0,3.98652082]
[1764321425835,0.79804633,3063.1,3063.0,3.50742082]
[1764321426009,0.30574633,3063.1,3063.0,3.47477309]
[1764321426326,0.79807819,3063.1,3063.0,0.001]
[1764321426529,0.30577819,3063.1,3063.0,3.74487309]
[1764321426968,0.30577819,3063.1,3063.0,3.77752082]
[1764321427117,0.30577819,3063.1,3063.0,4.54818049]
[1764321428032,0.30577819,3063.1,3063.0,5.00338049]
[1764321428228,0.30577819,3063.1,3063.0,4.54818049]
[1764321428409,0.30577819,3063.1,3063.0,5.00338049]
[1764321429931,0.30577819,3063.1,3063.0,5.7289746]
[1764321431513,0.30777819,3063.1,3063.0,5.7289746]
[1764321432551,0.30777819,3063.1,3063.0,5.24112687]
[1764321433042,0.30806123,3063.1,3063.0,5.24112687]
[1764321433347,0.30806123,3063.1,3063.0,5.73362687]
[1764321434488,0.30806123,3063.1,3063.0,5.4827746]
[1764321434974,0.30806123,3063.1,3063.0,5.45012687]
[1764321435382,0.30806123,3063.1,3063.0,5.24112687]
[1764321435561,0.30806123,3063.1,3063.0,4.97102687]
[1764321435764,0.30806123,3063.1,3063.0,5.43622687]
[1764321435935,0.30806123,3063.1,3063.0,5.9613746]
[1764321436140,0.30806123,3063.1,3063.0,6.81357774]
[1764321436377,0.30806123,3063.1,3063.0,6.78093001]
[1764321438071,0.30806123,3063.1,3063.0,6.28843001]
[1764321438771,0.30806123,3063.1,3063.0,4.11797623]
[1764321438946,1.25558614,3063.1,3063.0,3.26577309]
[1764321439150,1.25558614,3063.1,3063.0,3.47477309]
[1764321440368,0.78828614,3063.1,3063.0,3.47477309]
[1764321441078,0.78828614,3063.1,3063.0,0.001]
[1764321441373,1.25558614,3063.1,3063.0,0.21]
[1764321442155,1.25558614,3063.1,3063.0,0.001]
[1764321442357,4.52025265,3063.1,3063.0,0.001]
[1764321443497,1.25558614,3063.1,3063.0,0.001]
[1764321443707,0.78828614,3063.1,3063.0,0.001]
[1764321443854,0.30808614,3063.1,3063.0,0.4793]
[1764321444199,0.30808614,3063.1,3063.0,0.51194773]
[1764321445266,0.30808614,3063.1,3063.0,3.77672082]
[1764321445569,0.30728614,3063.1,3063.0,3.29842082]
[1764321446447,0.30728614,3063.1,3063.0,3.98572082]
[1764321446656,0.30728614,3063.1,3063.0,4.60940265]
[1764321447278,0.30728614,3063.1,3063.0,4.13110265]
[1764321447477,0.30728614,3063.1,3063.0,4.40040265]
[1764321447782,0.30728614,3063.1,3063.0,3.47477309]
[1764321448153,0.78748614,3063.1,3063.0,0.21]
[1764321448349,1.25478614,3063.1,3063.0,0.21]
[1764321448553,1.25478614,3063.1,3063.0,3.47477309]
[1764321448860,1.25478614,3063.1,3063.0,0.21]
[1764321449650,1.25478614,3063.1,3063.0,0.001]
[1764321452374,4.51945265,3063.1,3063.0,0.001]
[1764321453770,5.24504676,3063.1,3063.0,0.001]
[1764321454160,5.85955076,3063.1,3063.0,0.001]
[1764321454384,5.95935076,3063.1,3063.0,0.001]
[1764321455086,5.85955076,3063.1,3063.0,0.001]
[1764321455299,5.95935076,3063.1,3063.0,0.001]
[1764321455673,5.85955076,3063.1,3063.0,0.001]
[1764321455858,5.95935076,3063.1,3063.0,0.001]
[1764321457173,0.505304,3062.8,3062.7,0.001]
[1764321457375,0.505304,3062.8,3062.6,0.001]
[1764321457376,0.505304,3062.7,3062.6,0.001]
[1764321457568,1.96789014,3062.7,3062.6,0.001]
[1764321458291,5.95857714,3062.7,3062.6,0.001]
[1764321459095,5.85877714,3062.7,3062.6,0.001]
[1764321460384,5.45327314,3062.7,3062.6,0.001]